{"text_format":"1","workbook":"xlsx","n_sheets":13,"sheets":["1. Forside","2. Samlet prisloft","3. Driftsomkostninger","4. Historiske investeringer","5. Gennemførte investeringer","6. Korrektion investeringer","7. Planlagte investeringer","8. 1-1 omkostninger","9. Miljø- og servicemål","10. Klimatilpasning","11. Nettofinansielle poster","12. Over- eller underdækning","13. Kontrol med indtægtsrammen"],"not_rendered":{"charts":0,"images":0,"macros":1,"external_links":0,"defined_names":0,"comments":0,"pivot_tables":0},"unopened":[],"bounds":{"document_bytes":16777216,"sheet_cells":100000,"rows_first":2000,"rows_last":500,"rows_between":2000,"halvings":0,"cell_chars":16384,"cell_head_chars":4096},"cells_cut":0,"cells_raw":0,"read":"whole","date_system":"1900"}

{"sheet":"1. Forside","index":0,"n_rows":27,"n_cols":4,"rows_kept":27,"cut":false,"hidden":false,"merged":[[26,3,26,5],[25,3,25,5],[24,3,24,5],[23,3,23,5],[22,3,22,5],[21,3,21,5],[20,3,20,5],[19,3,19,5],[18,3,18,5],[7,3,7,5],[12,3,12,5],[15,3,15,5],[16,3,16,5],[17,3,17,5]]}
["Vordingborg Rens A/S"]
[]
[]
[]
[]
[]
[]
[null,null,null,"Bilag A"]
[]
[]
[]
[]
[null,null,null,"Indholdsfortegnelse"]
[]
[]
[null,null,"Fane nr. 2","Samlet prisloft "]
[null,null,"Fane nr. 3","Driftsomkostninger"]
[null,null,"Fane nr. 4","Historiske investeringer "]
[null,null,"Fane nr. 5","Gennemførte investeringer"]
[null,null,"Fane nr. 6","Korrektion investeringer"]
[null,null,"Fane nr. 7","Planlagte investeringer"]
[null,null,"Fane nr. 8","1:1 omkostninger"]
[null,null,"Fane nr. 9","Miljø- og servicemål"]
[null,null,"Fane nr. 10","Klimatilpasning"]
[null,null,"Fane nr. 11","Nettofinansielle poster"]
[null,null,"Fane nr. 12","Over- eller underdækning"]
[null,null,"Fane nr. 13","Kontrol med indtægtsrammen og oversigt over ekstraordinære effektiviseringsgevinster"]

{"sheet":"2. Samlet prisloft","index":1,"n_rows":38,"n_cols":6,"rows_kept":38,"cut":false,"hidden":false,"merged":[[3,1,3,5]]}
[{"$f":"'1. Forside'!A1","v":"Vordingborg Rens A/S"}]
[]
[]
[null,"Fane 2. Samlet prisloft for 2015"]
[]
[null,"Driftsomkostninger"]
[null,"Driftsomkostninger i prisloftet for 2014",{"$f":"'3. Driftsomkostninger'!C21","v":17623107.305000003},"kr."]
[null,"Bortfald af væsentlige omkostninger",{"$f":"-'3. Driftsomkostninger'!C17","v":0},"kr."]
[null,"Korrektion for prisudviklingen 2014-2015",{"$f":"'3. Driftsomkostninger'!C23","v":14098.485844000003},"kr."]
[null,"Forhøjelse til effektivt niveau iht. benchmarkingen",{"$f":"'3. Driftsomkostninger'!C29","v":0},"kr."]
[null,"Korrektion for generelt effektiviseringskrav",{"$f":"-'3. Driftsomkostninger'!C35","v":-77541.672142000025},"kr."]
[null,"Korrektion for individuelt effektiviseringskrav",{"$f":"-'3. Driftsomkostninger'!C44","v":-528252.63097612502},"kr."]
[null,"Driftsomkostninger i alt",{"$f":"SUM(C7:C12)","v":17031411.48772588},"kr.",{"$f":"C13","v":17031411.48772588}," kr."]
[null,"Investeringer"]
[null,"Tillæg for historiske investeringer",{"$f":"'4. Historiske investeringer'!C9","v":5189686.7631145306},"kr."]
[null,"Tillæg for gennemførte investeringer i 2011-2013",{"$f":"'5. Gennemførte investeringer'!F24","v":276781.50666666665},"kr."]
[null,"Korrektion af tillæg for planlagte investeringer vedrørende 2013  ",{"$f":"'6. Korrektion investeringer'!C10","v":58441.033333333326},"kr."]
[null,"Tillæg for planlagte investeringer i 2014 og 2015",{"$f":"'7. Planlagte investeringer'!F49","v":489416.66666666663},"kr."]
[null,"Investeringstillæg i alt",{"$f":"SUM(C15:C18)","v":6014325.9697811976},"kr.",{"$f":"C19","v":6014325.9697811976}," kr."]
[null,"Øvrige omkostninger mv."]
[null,"Tillæg for 1:1 omkostninger i 2015",{"$f":"'8. 1-1 omkostninger'!C10","v":1786000},"kr."]
[null,"Tillæg vedr. revisorerklæringer og DANVA/FVD-kontingent",{"$f":"'8. 1-1 omkostninger'!C18","v":66000},"kr."]
[null,"Korrektion ift. faktiske 1:1 omkostninger i 2013",{"$f":"'8. 1-1 omkostninger'!C24","v":-3840552},"kr."]
[null,"Tillæg for driftsomkostninger til miljø- og servicemål i 2015",{"$f":"'9. Miljø- og servicemål'!C8","v":0},"kr."]
[null,"Korrektion ift. faktiske driftsomkostninger til miljø- og servicemål i 2013",{"$f":"'9. Miljø- og servicemål'!C15","v":0},"kr."]
[null,"Tillæg for driftsomkostninger til medfinansiering af klimatilpasningsprojekter i 2015",{"$f":"'10. Klimatilpasning'!C9","v":0},"kr."]
[null,"Korrektion ift. faktiske omkostninger til medfinansiering af klimatilpasningsprojekter i 2013",{"$f":"'10. Klimatilpasning'!C16","v":0},"kr."]
[null,"Tillæg/fradrag for nettofinansielle poster i 2015",{"$f":"'11. Nettofinansielle poster'!C9","v":619000},"kr."]
[null,"Korrektion ift. faktiske nettofinansielle poster i 2013",{"$f":"'11. Nettofinansielle poster'!C16","v":-373110},"kr."]
[null,"Øvrige omkostninger mv. i alt",{"$f":"SUM(C21:C29)","v":-1742662},"kr.",{"$f":"C30","v":-1742662}," kr."]
[null,"Historisk over- eller underdækning"]
[null,"Tillæg/fradrag for over- eller underdækning til og med 2010",{"$f":"'12. Over- eller underdækning'!C11","v":0},"kr.",{"$f":"C32","v":0}," kr."]
[null,"Korrektion i forhold til tidligere indtægtsramme "]
[null,"Korrektion for overholdelse af indtægtsramme i prisloft 2013",{"$f":"'13. Kontrol med indtægtsrammen'!E27","v":-1689569.6459800974},"kr.",{"$f":"C34","v":-1689569.6459800974}," kr."]
[null,"Samlet prisloft"]
[null,"Indtægtsramme i 2015 ",null,null,{"$f":"SUM(E13:E34)","v":19613505.81152698}," kr."]
[null,"Debiteret vandmængde i 2013",null,null,1727965," m3"]
[null,"Prisloft 2015",null,null,{"$f":"E36/E37","v":11.350638358720795}," kr./m3"]

{"sheet":"3. Driftsomkostninger","index":2,"n_rows":44,"n_cols":4,"rows_kept":44,"cut":false,"hidden":false,"merged":[[3,1,3,3]]}
[{"$f":"'1. Forside'!A1","v":"Vordingborg Rens A/S"}]
[]
[]
[null,"Fane 3. Driftsomkostninger "]
[]
[null,"Driftsomkostningerne i prisloftet for 2014"]
[null,"Korrigerede driftsomkostninger i prisloftet for 2013 (DOiPL 2013)",19966978,"kr."]
[null,"Prisfremskrivning 1,5 pct.",{"$f":"0.015*SUM(C7:C7)","v":299504.67},"kr."]
[null,"Generelt effektiviseringskrav (0 pct.)",0,"kr."]
[null,"Individuelt effektiviseringskrav ",-913114,"kr."]
[null,"Bortfald af midlertidigt tillæg  iht. § 8, stk. 5 (inkl. prisfremskrivning)",{"$f":"-1.015*1704691","v":-1730261.3649999998},"kr."]
[null,"Driftsomkostningerne i prisloftet for 2014 (DOiPL 2014)\n(korrigeret for bortfald af midlertidigt tillæg)",{"$f":"SUM(C7:C11)","v":17623107.305000003},"kr."]
[]
[]
[null,"Korrektion for forventet bortfald af væsentlige omkostninger"]
[null,"Selskabets indberettede bortfald af væsentlige omkostninger inden 2015",0,"kr."]
[null,"Korrektion for forventet bortfald ",{"$f":"SUM(C16:C16)","v":0},"kr."]
[]
[]
[null,"Korrektion for prisudviklingen fra 2014-2015"]
[null,"Driftsomkostningerne i prisloftet for 2014",{"$f":"C12-C17","v":17623107.305000003},"kr."]
[null,"Prisudvikling 2014 - 2015 ",0.08,"pct."]
[null,"Korrektion for prisudvikling",{"$f":"C21*(C22/100)","v":14098.485844000003},"kr."]
[]
[]
[null,"Eventuel forhøjelse til effektivt niveau iht. benchmarkingen"]
[null,"Selskabets effektive driftsomkostninger iht. benchmarkingen",13139788.545647997,"kr."]
[null,"Selskabets pristalskorrigerede driftsomkostninger i 2015-niveau",{"$f":"C21+C23","v":17637205.790844005},"kr."]
[null,"Eventuel forhøjelse til effektivt niveau",{"$f":"IF(C28>C27,0,C27-C28)","v":0},"kr."]
[]
[]
[null,"Korrektion for generelt effektiviseringskrav"]
[null,"Driftsomkostningerne i prisloftet for 2014",{"$f":"C21","v":17623107.305000003},"kr. "]
[null,"Generelt effektiviseringskrav ",0.44,"pct."]
[null,"Endeligt generelt effektiviseringskrav",{"$f":"C33*(C34/100)","v":77541.672142000025},"kr. "]
[]
[]
[null,"Korrektion for individuelt effektiviseringskrav"]
[null,"Rå effektiviseringspotentiale",4483318.4093519999,"kr."]
[null,"Effektiviseringspotentiale efter eventuel korrektion for særlige forhold",4483318.4093519999,"kr."]
[null,"Effektiviseringspotentiale efter forsigtighedshensyn",2113010.5239045001,"kr."]
[null,"Effektiviseringspotentiale efter eventuel korrektion for sammensætning af signifikante costdrivere",2113010.5239045001,"kr. "]
[null,"Umiddelbart effektiviseringskrav",{"$f":"C42/4","v":528252.63097612502},"kr."]
[null,"Endeligt individuelt effektiviseringskrav",{"$f":"IF(C43>0.05*C21,0.05*C21,IF(C43<0.01*C21,0,C43))","v":528252.63097612502},"kr. "]

{"sheet":"4. Historiske investeringer","index":3,"n_rows":9,"n_cols":4,"rows_kept":9,"cut":false,"hidden":false,"merged":[[3,1,3,2]]}
[{"$f":"'3. Driftsomkostninger'!A1","v":"Vordingborg Rens A/S"}]
[]
[]
[null,"Fane 4. Historiske investeringer "]
[]
[null,"Tillæg for historiske investeringer "]
[null,"Værdi af selskabets materielle anlægsaktiver pr. 1. januar 2010",153028996.34297767,"kr."]
[null,"Den årlige standardafskrivning på de materielle anlægsaktiver iht. POLKA",5189686.7631145306,"kr."]
[null,"Tillæg i alt i 2015",{"$f":"C8","v":5189686.7631145306},"kr."]

{"sheet":"5. Gennemførte investeringer","index":4,"n_rows":24,"n_cols":7,"rows_kept":24,"cut":false,"hidden":false,"merged":[[3,1,3,5],[6,5,6,6]]}
[{"$f":"'4. Historiske investeringer'!A1","v":"Vordingborg Rens A/S"}]
[]
[]
[null,"Fane 5. Gennemførte investeringer i 2010 - 2013 "]
[]
[null,"Tillæg for gennemførte investeringer i 2013"]
[null," Beskrivelse af investeringen   ","Årstal ","Std. levetid (år)   "," Anskaffelses-pris (kr.)","Afskrivning "]
[null,"Mindre renseanlæg < 5.000 PE uden mulighed for opdeling",2013,40,36066,{"$f":"E8/D8","v":901.65},"kr."]
[null,"Beluftningstanke, Mek/EL",2013,20,709940,{"$f":"E9/D9","v":35497},"kr."]
[null,"Beluftningstanke, SRO",2013,10,177485,17748.5,"kr."]
[null,"Indløb med riste, SRO",2013,10,93419,9341.9,"kr."]
[null,"Efterklaringstanke, Konstruktioner",2013,60,164347,2739.1166666666668,"kr."]
[null,"Indløb med riste, Konstruktioner",2013,60,588835,9813.9166666666661,"kr."]
[null,"Indløb med riste, Mek/EL",2013,20,168239,8411.9500000000007,"kr."]
[null,"Indløb med riste, SRO",2013,10,84119,8411.9,"kr."]
[null,"Gasdisponering, Konstruktioner",2013,60,18012,300.2,"kr."]
[null,"Beluftningstanke, SRO",2013,10,99498,9949.7999999999993,"kr."]
[null,"Forafvanding, slam, Konstruktion",2013,60,16659,277.64999999999998,"kr."]
[null,"Slutafvanding, slam - højteknologisk (centrifuger), Mek/El",2013,20,28650,1432.5,"kr."]
[null,"Indløb med riste, Mek/EL",2013,20,17854,892.7,"kr."]
[null,"Indløb med riste, Konstruktioner",2013,60,78854,1314.2333333333333,"kr."]
[null,"Tillæg for 2013 ",null,null,null,{"$f":"SUM(F8:F21)","v":107033.01666666666},"kr."]
[null,"Tillæg for 2010 - 2012",null,null,null,169748.49,"kr."]
[null,"Samlet tillæg for gennemførte investeringer",null,null,null,{"$f":"F22+F23","v":276781.50666666665},"kr."]

{"sheet":"6. Korrektion investeringer","index":5,"n_rows":10,"n_cols":4,"rows_kept":10,"cut":false,"hidden":false,"merged":[[3,1,3,3]]}
[{"$f":"'5. Gennemførte investeringer'!A1","v":"Vordingborg Rens A/S"}]
[]
[]
[null,"Fane 6. Korrektion af tillæg for planlagte investeringer"]
[]
[null,"Korrektion af tillæg for planlagte investeringer vedr. 2013"]
[null,"Tillæg for planlagte investeringer i 2013 i prisloft 2013",0,"kr."]
[null,"Tillæg for planlagte investeringer i 2013 i prisloft 2014",155625,"kr."]
[null,"Selskabets faktiske afskrivninger på gennemførte investeringer i 2013",{"$f":"'5. Gennemførte investeringer'!F22","v":107033.01666666666},"kr."]
[null,"Korrektion af tillæg for planlagte investeringer vedr. 2013",{"$f":"C9-C7+C9-C8","v":58441.033333333326},"kr."]

{"sheet":"7. Planlagte investeringer","index":6,"n_rows":49,"n_cols":7,"rows_kept":49,"cut":false,"hidden":false,"merged":[[6,5,6,6],[3,1,3,6]]}
[{"$f":"'6. Korrektion investeringer'!A1","v":"Vordingborg Rens A/S"}]
[]
[]
[null,"Fane 7. Planlagte investeringer "]
[]
[null,"Tillæg for planlagte investeringer i 2014 og 2015"]
[null,"Beskrivelse af investeringen   ","Årstal ","Std. levetid (år)   ","Anskaffelses-pris (kr.)   ","Afskrivning"]
[null,"Forklaring, Konstruktioner",2014,60,250000,{"$f":"E8/D8","v":4166.666666666667},"kr."]
[null,"Forklaring, Mek/EL",2014,20,250000,{"$f":"E9/D9","v":12500},"kr."]
[null,"Slutafvanding, slam - højteknologisk (centrifuger), Mek/El",2014,20,100000,{"$f":"E10/D10","v":5000},"kr."]
[null,"Rådnetanke, slam, Konstruktioner",2014,60,500000,8333.3333333333339,"kr."]
[null,"Rådnetanke, slam, Mek/EL",2014,20,300000,15000,"kr."]
[null,"Rådnetanke, slam, SRO",2014,10,200000,20000,"kr."]
[null,"Pumpestationer m. overbygning (< 20 m2), SRO",2014,10,1500000,150000,"kr."]
[null,"Rådnetanke, slam, Konstruktioner",2014,60,1080000,18000,"kr."]
[null,"Rådnetanke, slam, Mek/EL",2014,20,120000,6000,"kr."]
[null,"Slutafvanding, slam - højteknologisk (centrifuger), Konstruktioner",2014,60,1350000,22500,"kr."]
[null,"Slutafvanding, slam - højteknologisk (centrifuger), Mek/El",2014,20,75000,3750,"kr."]
[null,"Slutafvanding, slam - højteknologisk (centrifuger), SRO",2014,10,75000,7500,"kr."]
[null,"Indløb med riste, Konstruktioner",2015,60,250000,4166.666666666667,"kr."]
[null,"Indløb med riste, Mek/EL",2015,20,150000,7500,"kr."]
[null,"Indløb med riste, SRO",2015,10,100000,10000,"kr."]
[null,"Sand- og fedtfang, Kontruktioner",2015,60,125000,2083.3333333333335,"kr."]
[null,"Sand- og fedtfang, Mek/EL",2015,20,75000,3750,"kr."]
[null,"Sand- og fedtfang, SRO",2015,10,50000,5000,"kr."]
[null,"Forklaring, Konstruktioner",2015,60,250000,4166.666666666667,"kr."]
[null,"Forklaring, Mek/EL",2015,20,150000,7500,"kr."]
[null,"Forklaring, SRO",2015,10,100000,10000,"kr."]
[null,"Beluftningstanke, Konstruktioner",2015,60,375000,6250,"kr."]
[null,"Beluftningstanke, Mek/EL",2015,20,225000,11250,"kr."]
[null,"Beluftningstanke, SRO",2015,10,150000,15000,"kr."]
[null,"Efterklaringstanke, Konstruktioner",2015,60,375000,6250,"kr."]
[null,"Efterklaringstanke, Mek/El",2015,20,225000,11250,"kr."]
[null,"Efterklaringstanke, SRO",2015,10,150000,15000,"kr."]
[null,"Efterbehandlingsanlæg (sandfilter), Konstruktioner",2015,60,250000,4166.666666666667,"kr."]
[null,"Efterbehandlingsanlæg (sandfilter), Mek/EL",2015,20,150000,7500,"kr."]
[null,"Efterbehandlingsanlæg (sandfilter), SRO",2015,10,100000,10000,"kr."]
[null,"Forafvanding, slam, Konstruktion",2015,60,250000,4166.666666666667,"kr."]
[null,"Forafvanding, slam, Mek/EL",2015,20,150000,7500,"kr."]
[null,"Forafvanding, slam, SRO",2015,10,100000,10000,"kr."]
[null,"Slutafvanding, slam - højteknologisk (centrifuger), Konstruktioner",2015,60,375000,6250,"kr."]
[null,"Slutafvanding, slam - højteknologisk (centrifuger), Mek/El",2015,20,225000,11250,"kr."]
[null,"Slutafvanding, slam - højteknologisk (centrifuger), SRO",2015,10,150000,15000,"kr."]
[null,"Slutdisponering, slam - højteknologisk (slamtørring), Konstruktioner",2015,60,250000,4166.666666666667,"kr."]
[null,"Slutdisponering, slam - højteknologisk (slamtørring), Mek/EL",2015,20,150000,7500,"kr."]
[null,"Slutdisponering, slam - højteknologisk (slamtørring), SRO",2015,10,100000,10000,"kr."]
[null,"Tillæg for 2014",null,null,null,{"$f":"SUMIF(C8:C46,\"2014\",F8:F46)","v":272750},"kr."]
[null,"Tillæg for 2015",null,null,null,{"$f":"SUMIF(C8:C46,\"2015\",F8:F46)","v":216666.66666666663},"kr."]
[null,"Tillæg i alt",null,null,null,{"$f":"F47+F48","v":489416.66666666663},"kr."]

{"sheet":"8. 1-1 omkostninger","index":7,"n_rows":24,"n_cols":4,"rows_kept":24,"cut":false,"hidden":false,"merged":[[3,1,3,3],[14,1,14,3],[20,1,20,3]]}
[{"$f":"'7. Planlagte investeringer'!A1","v":"Vordingborg Rens A/S"}]
[]
[]
[null,"Fane 8. 1:1 omkostninger"]
[]
[null,"Tillæg for budgetterede 1:1 omkostninger i 2015"]
[null,"Betaling til Forsyningssekretariatet",33000,"kr."]
[null,"Spildevandsafgift",1600000,"kr."]
[null,"Ejendomsskatter",153000,"kr."]
[null,"Tillæg i alt ",{"$f":"SUM(C7:C9)","v":1786000},"kr."]
[]
[]
[]
[]
[null,"Tillæg for budgetterede nødvendige udgifter til revisorerklæringer samt ordinært medlemskab af DANVA og FVD i 2015"]
[null,"Betaling for ordinært medlemskab af DANVA/FVD",40000,"kr."]
[null,"Betaling for revisorerklæringer",26000,"kr."]
[null,"Tillæg i alt ",{"$f":"SUM(C16:C17)","v":66000},"kr."]
[]
[]
[null,"Korrektion af tillæg for faktiske 1:1 omkostninger (inkl. revisorerklæringer og ordinært medlemskab af DANVA/FVD) i 2013"]
[null,"Selskabets faktiske 1:1 omkostninger mv. i 2013, jf. reguleringsregnskabet",-1599485,"kr."]
[null,"Tillæg for budgetterede 1:1 omkostninger mv. i prisloft 2013",2241067,"kr."]
[null,"Korrektion af tillæg for budgetterede 1:1 omkostninger mv. i 2013",{"$f":"C22-C23","v":-3840552},"kr."]

{"sheet":"9. Miljø- og servicemål","index":8,"n_rows":15,"n_cols":4,"rows_kept":15,"cut":false,"hidden":false,"merged":[[3,1,3,3]]}
[{"$f":"'8. 1-1 omkostninger'!A1","v":"Vordingborg Rens A/S"}]
[]
[]
[null,"Fane 9. Driftsomkostninger til miljø- og servicemål "]
[]
[null,"Tillæg for budgetterede driftsomkostninger til miljø- og servicemål i 2015"]
[null,null,0,"kr."]
[null,"Tillæg i alt",{"$f":"SUM(C7:C7)","v":0},"kr."]
[]
[]
[]
[null,"Korrektion af tillæg for faktiske driftsomkostninger til miljø- og servicemål i 2013"]
[null,"Selskabets faktiske driftsomkostninger til miljø- og servicemål i 2013, jf. reguleringsregnskabet",0,"kr."]
[null,"Tillæg for budgetterede driftsomkostninger til miljø- og servicemål i prisloft 2013",0,"kr."]
[null,"Korrektion af tillæg for budgetterede driftsomkostninger til miljø- og servicemål i 2013",{"$f":"C13-C14","v":0},"kr."]

{"sheet":"10. Klimatilpasning","index":9,"n_rows":16,"n_cols":4,"rows_kept":16,"cut":false,"hidden":false,"merged":[[3,1,3,3],[12,1,12,3],[6,1,6,3]]}
[{"$f":"'9. Miljø- og servicemål'!A1","v":"Vordingborg Rens A/S"}]
[]
[]
[null,"Fane 10. Medfinansiering af klimatilpasningsprojekter"]
[]
[]
[null,"Tillæg for budgetterede omkostninger til medfinansiering af klimatilpasningsprojekter i 2015"]
[null,null,0,"kr."]
[null,"Tillæg i alt",{"$f":" SUM(C8:C8)","v":0},"kr."]
[]
[]
[]
[null,"Korrektion af tillæg for faktiske omkostninger til medfinansiering af klimatilpasningsprojekter i 2013"]
[null,"Selskabets faktiske driftsomkostninger til klimatilpasningsprojekter i 2013, jf. reguleringsregnskabet",0,"kr."]
[null,"Tillæg for budgetterede driftsomkostninger til klimatilpasningsprojekter i prisloft 2013",0,"kr."]
[null,"Korrektion af tillæg for budgetterede omkostninger til klimatilpasningsprojekter i 2013",{"$f":"C14-C15","v":0},"kr."]

{"sheet":"11. Nettofinansielle poster","index":10,"n_rows":16,"n_cols":4,"rows_kept":16,"cut":false,"hidden":false,"merged":[[3,1,3,3]]}
[{"$f":"'10. Klimatilpasning'!A1","v":"Vordingborg Rens A/S"}]
[]
[]
[null,"Fane 11. Nettofinansielle poster"]
[]
[null,"Tillæg for budgetterede nettofinansielle poster i 2015"]
[null,"Budgetterede renteudgifter og gebyrer i 2015",629000,"kr."]
[null,"Budgetterede renteindtægter i 2015",10000,"kr."]
[null,"Tillæg/fradrag i alt",{"$f":"C7-C8","v":619000},"kr."]
[]
[]
[]
[null,"Korrektion af tillæg for faktiske nettofinansielle poster i 2013"]
[null,"Selskabets faktiske nettofinansielle poster i 2013, jf. reguleringsregnskabet",428390,"kr."]
[null,"Tillæg for budgetterede nettofinansielle poster i prisloft 2013",801500,"kr."]
[null,"Korrektion af tillæg for budgetterede nettofinansielle poster i 2013",{"$f":"C14-C15","v":-373110},"kr."]

{"sheet":"12. Over- eller underdækning","index":11,"n_rows":11,"n_cols":4,"rows_kept":11,"cut":false,"hidden":false,"merged":[[3,1,3,3]]}
[{"$f":"'11. Nettofinansielle poster'!A1","v":"Vordingborg Rens A/S"}]
[]
[]
[null,"Fane 12. Over- eller underdækning til og med 2010"]
[]
[null,"Tillæg/fradrag for over- eller underdækning til og med 2010"]
[null,"Opgjort over- eller underdækning per 31. december 2010",0,"kr."]
[null,"Heraf beløb indregnet i prislofterne for 2012 - 2014",0,"kr."]
[null,"Endnu ikke indregnet over- eller underdækning",{"$f":"C7-C8","v":0},"kr."]
[null,"Resterende indregningsperiode (fastsat i prisloftet for 2012)",0,"år"]
[null,"Tillæg/fradrag i alt",{"$f":"IF(C7=0,0,C9/C10)","v":0},"kr."]

{"sheet":"13. Kontrol med indtægtsrammen","index":12,"n_rows":38,"n_cols":12,"rows_kept":38,"cut":false,"hidden":false,"merged":[[3,1,3,5],[30,1,30,4],[5,1,5,5]]}
[{"$f":"'12. Over- eller underdækning'!A1","v":"Vordingborg Rens A/S"}]
[]
[]
[null,"Fane 13. Korrektion for overholdelse af indtægtsrammen i prisloftet for 2013"]
[]
[null,"Samlet opgørelse vedrørende overholdelse af indtægtsrammen i prisloftet for 2013"]
[null,"Indtægtsramme i prisloftet for 2013",null,null,28159204.354019903,"kr."]
[null,"Ikke anvendt likviditet vedrørende investeringer i 2013"]
[null,"Tillæg for historiske investeringer ",5491644,"kr."]
[null,"Tillæg for gennemførte investeringer i 2011",169748.49,"kr."]
[null,"Korrektion af tillæg for planlagte investeringer i 2011",0,"kr."]
[null,"Tillæg for planlagte investeringer i 2012 og 2013",177118,"kr."]
[null,"Indtægter fra tilslutningsbidrag",0,"kr."]
[null,"Indtægter fra salg af anlægsaktiver",0,"kr."]
[null,"Erstatninger vedr. anlægsaktiver mv.",0,"kr."]
[null,"Ekstraordinær effektiviseringsgevinst anvendt til investeringer",0,"kr."]
[null,"Udgifter til investeringer",-7038048,"kr."]
[null,"Ikke anvendt likviditet vedr. investeringer i alt",{"$f":"SUM(C9:C17)","v":-1199537.5099999998},"kr.",{"$f":"IF(C18<0,0,-C18)","v":0},"kr."]
[null,"Ekstraordinære effektiviseringsgevinster anvendt til takstnedsættelse"]
[null,"Ekstraordinær effektiviseringsgevinst anvendt til takstnedsættelse",0,"kr.",{"$f":"-C20","v":0},"kr."]
[null,"Korrektion af ikke opkrævet tillæg fra 2011 i prisloft 2013"]
[null,"Korrektion af ikke opkrævet tillæg fra 2011 i prisloft 2013",0,"kr.",{"$f":"-C22","v":0},"kr."]
[null,"Indtægter fra primære aktiviteter mv."]
[null,"Indtægter fra kubikmetertakster, faste takster, særbidrag, målergebyrer samt andre takster og gebyrer",29848774,"kr."]
[null,"Andre indtægter i prisloftåret, som selskabet har opnået i forbindelse med eller som følge af selskabets primære aktiviteter",0,"kr."]
[null,"Indtægter fra primære aktiviteter mv. i alt",{"$f":"SUM(C24:C25)","v":29848774},"kr.",{"$f":"-C26","v":-29848774},"kr."]
[null,"Tillæg/fradrag i prisloftet for 2015 i alt",null,null,{"$f":"E7+E18+E20+E22+E26","v":-1689569.6459800974},"kr."]
[]
[]
[]
[null,"Oversigt over ekstraordinære effektiviseringsgevinster"]
[]
[null,null,2012,null,2013,null,2014,null,2015,null,2016]
[null,"Indhentet ekstraordinær effektiviseringsgevinst",0,"kr.",0,"kr.",null,"kr.",null,"kr.",null,"kr."]
[null,"Gevinst anvendt til investeringer",0,"kr.",0,"kr.",null,"kr.",null,"kr.",null,"kr."]
[null,"Gevinst anvendt til takstnedsættelse",0,"kr.",0,"kr.",null,"kr.",null,"kr.",null,"kr."]
[null,"Korrektion for  effektiviseringsgevinst der ikke er anvendt inden 4 år",0,"kr.",0,"kr.",null,"kr.",null,"kr.",{"$f":"IF(C38>SUM(C35:I36),C38-SUM(E35:I36),0)*-1","v":0},"kr."]
[null,"Resterende gevinst",{"$f":"C34-C35-C36","v":0},"kr.",{"$f":"C38+E34-E35-E36","v":0},"kr.",{"$f":"E38+G34-G35-G36","v":0},"kr.",{"$f":"G38+I34-I35-I36","v":0},"kr.",{"$f":"K34-K35-K36+K37","v":0},"kr."]